[Event "120th Taflfelag Reykjavik-B 2020"]
[Site "Reykjavik"]
[Date "2020.09.24"]
[Round "5.10"]
[White "Ragnarsson, Johann"]
[Black "Ptacnikova, Lenka"]
[Result "0-1"]
[ECO "A45"]
[WhiteElo "1952"]
[BlackElo "2117"]
[Annotator "NA"]
[PlyCount "82"]
[EventDate "2020.09.13"]
[EventType "tourn"]
[EventCountry "ISL"]
[SourceTitle "playchess.com"]
[Source "ChessBase"]
[SourceQuality "1"]
[TimeControl "40/5400+15:1800+30"]

1. d4 {[%emt 0:00:00]} Nf6 {[%emt 0:01:59]} 2. Bg5 {[%emt 0:00:00]} Ne4 {[%emt 0:01:00]} 3. Bf4 {[%emt 0:00:31]} d5 {[%emt 0:02:16]} 4. e3 {[%emt 0:05:07]} c5 {[%emt 0:01:17]} 5. c3 {[%emt 0:09:37]} cxd4 {[%emt 0:01:02]} 6. exd4 {[%emt 0:00:19]} Nc6 {[%emt 0:00:44]} 7. Bd3 {[%emt 0:02:03]} Nf6 {[%emt 0:11:05]} 8. h3 {[%emt 0:02:46]} g6 {[%emt 0:01:09]} 9. Qc1 {[%emt 0:02:59]} Bf5 {[%emt 0:00:55]} 10. Bxf5 {[%emt 0:02:48]} gxf5 {[%emt 0:00:26]} 11. Nf3 {[%emt 0:00:46]} e6 {[%emt 0:05:03]} 12. Qc2 {[%emt 0:06:01]} Rg8 {[%emt 0:04:27]} 13. O-O {[%emt 0:12:33]} Nh5 {[%emt 0:03:16]} 14. Bh2 {[%emt 0:02:33]} Bd6 {[%emt 0:02:38]} 15. Ne5 {[%emt 0:02:06]} Bxe5 {[%emt 0:04:40]} 16. dxe5 {[%emt 0:02:47]} f4 {[%emt 0:05:22]} 17. Qxh7 {[%emt 0:11:26]} Qg5 {[%emt 0:00:00]} 18. g4 {[%emt 0:00:00]} Nxe5 {[%emt 0:16:18]} 19. f3 {[%emt 0:05:24]} O-O-O {[%emt 0:02:01]} 20. Qc2 {[%emt 0:03:52]} Qh4 {[%emt 0:05:44]} 21. Qe2 {[%emt 0:05:16]} Nc4 {[%emt 0:02:34]} 22. Kh1 {[%emt 0:05:15]} Ng3+ {[%emt 0:04:47]} 23. Bxg3 {[%emt 0:00:00]} Qxg3 {[%emt 0:04:05]} 24. Qh2 {[%emt 0:00:28]} Ne3 {[%emt 0:04:07]} 25. Rf2 {[%emt 0:02:02]} Rh8 {[%emt 0:01:52]} 26. Qxg3 {[%emt 0:00:12]} fxg3 {[%emt 0:00:00]} 27. Re2 {[%emt 0:00:00]} Rxh3+ {[%emt 0:00:00]} 28. Kg1 {[%emt 0:00:00]} Nc4 {[%emt 0:00:56]} 29. Nd2 {[%emt 0:03:48]} Nxb2 {[%emt 0:02:29]} 30. Nf1 {[%emt 0:00:00]} Nd3 {[%emt 0:00:51]} 31. Rg2 {[%emt 0:03:58]} Nf4 {[%emt 0:00:28]} 32. Rxg3 {[%emt 0:00:32]} Ne2+ {[%emt 0:00:02]} 33. Kg2 {[%emt 0:00:00]} Rh7 {[%emt 0:00:16]} 34. Re1 {[%emt 0:00:16]} Nxg3 {[%emt 0:00:02]} 35. Nxg3 {[%emt 0:00:00]} Kc7 {[%emt 0:00:47]} 36. Nh5 {[%emt 0:00:00]} Kd6 {[%emt 0:00:03]} 37. f4 {[%emt 0:01:07]} Rc8 {[%emt 0:00:16]} 38. Re3 {[%emt 0:00:15]} Rhh8 {[%emt 0:00:24]} 39. Nf6 {[%emt 0:01:35]} Rc4 {[%emt 0:00:00]} 40. Kg3 {[%emt 0:00:00]} Rhc8 {[%emt 0:00:00]} 41. Kh4 {[%emt 0:17:25]} Rxf4 {[%emt 0:35:09]} 0-1

[Event "120th Taflfelag Reykjavik-B 2020"]
[Site "Reykjavik"]
[Date "2020.09.26"]
[Round "6.7"]
[White "Heidarsson, Arnar Milutin"]
[Black "Ragnarsson, Johann"]
[Result "0-1"]
[ECO "D35"]
[WhiteElo "1965"]
[BlackElo "1952"]
[Annotator "ChessBase"]
[PlyCount "72"]
[EventDate "2020.09.13"]
[EventType "tourn"]
[EventCountry "ISL"]
[SourceTitle "playchess.com"]
[Source "ChessBase"]
[SourceQuality "1"]
[TimeControl "40/5400+15:1800+30"]

1. Nf3 {[%emt 0:01:36]} d5 {[%emt 0:00:24]} 2. d4 {[%emt 0:00:00]} e6 {[%emt 0:01:52]} 3. c4 {[%emt 0:00:06]} c6 {[%emt 0:00:10]} 4. cxd5 {[%emt 0:00:01]} exd5 {[%emt 0:00:00]} 5. Nc3 {[%emt 0:00:00]} Bd6 {[%emt 0:01:08]} 6. Bg5 {[%emt 0:00:01]} Nf6 {[%emt 0:00:00]} 7. e3 {[%emt 0:00:00]} Be6 {[%emt 0:00:03]} 8. Bd3 {[%emt 0:00:00]} Nbd7 {[%emt 0:00:20]} 9. O-O {[%emt 0:00:22]} h6 {[%emt 0:05:02]} 10. Bf4 {[%emt 0:00:05]} Nb6 {[%emt 0:03:26]} 11. Bxd6 {[%emt 0:00:25]} Qxd6 {[%emt 0:00:00]} 12. Ne5 {[%emt 0:00:04]} O-O {[%emt 0:10:52]} 13. f4 {[%emt 0:00:36]} Rad8 {[%emt 0:00:53]} 14. Qf3 {[%emt 0:01:43]} Nc4 {[%emt 0:15:42]} 15. Bxc4 {[%emt 0:00:33]} dxc4 {[%emt 0:00:03]} 16. Rad1 {[%emt 0:06:00]} Qb4 {[%emt 0:12:56]} 17. Qe2 {[%emt 0:07:09]} Rfe8 {[%emt 0:06:17]} 18. f5 {[%emt 0:00:57]} Bd5 {[%emt 0:01:18]} 19. e4 {[%emt 0:02:41]} Nxe4 {[%emt 0:00:00]} 20. Nxe4 {[%emt 0:00:03]} Bxe4 {[%emt 0:00:17]} 21. Qxe4 {[%emt 0:01:20]} f6 {[%emt 0:00:40]} 22. Qg4 {[%emt 0:00:00]} Qxb2 {[%emt 0:09:38]} 23. Rf2 {[%emt 0:04:25]} Qb4 {[%emt 0:03:13]} 24. Nf3 {[%emt 0:01:11]} c3 {[%emt 0:00:45]} 25. Qf4 {[%emt 0:01:15]} c5 {[%emt 0:01:45]} 26. g3 {[%emt 0:07:07]} Rd5 {[%emt 0:01:55]} 27. Rff1 {[%emt 0:04:55]} Re2 {[%emt 0:08:59]} 28. Qb8+ {[%emt 0:00:39]} Kh7 {[%emt 0:00:00]} 29. Rde1 {[%emt 0:00:06]} Rxe1 {[%emt 0:00:06]} 30. Rxe1 {[%emt 0:00:00]} c2 {[%emt 0:01:14]} 31. Qe8 {[%emt 0:02:31]} cxd4 {[%emt 0:00:26]} 32. Qe4 {[%emt 0:08:18]} Qc5 {[%emt 0:00:50]} 33. Qg4 {[%emt 0:02:20]} d3+ {[%emt 0:01:52]} 34. Kh1 {[%emt 0:03:36]} Rxf5 {[%emt 0:00:26]} 35. Rc1 {[%emt 0:02:12]} Rxf3 {[%emt 0:01:01]} 36. Qxf3 {[%emt 0:00:07]} Qc6 {[%emt 0:00:00]} 0-1

[Event "120th Taflfelag Reykjavik-B 2020"]
[Site "Reykjavik"]
[Date "2020.09.26"]
[Round "6.9"]
[White "Olafsson, Thorvardur"]
[Black "Mai, Alexander Oliver"]
[Result "1/2-1/2"]
[ECO "C85"]
[WhiteElo "2111"]
[BlackElo "2055"]
[Annotator "ChessBase"]
[PlyCount "62"]
[EventDate "2020.09.13"]
[EventType "tourn"]
[EventCountry "ISL"]
[SourceTitle "playchess.com"]
[Source "ChessBase"]
[SourceQuality "1"]
[TimeControl "40/5400+15:1800+30"]

1. e4 {[%emt 0:00:00]} e5 {[%emt 0:00:00]} 2. Nf3 {[%emt 0:00:19]} Nc6 {[%emt 0:00:00]} 3. Bb5 {[%emt 0:00:03]} a6 {[%emt 0:00:00]} 4. Ba4 {[%emt 0:00:11]} Nf6 {[%emt 0:00:00]} 5. O-O {[%emt 0:00:00]} Be7 {[%emt 0:00:00]} 6. Bxc6 {[%emt 0:00:22]} dxc6 {[%emt 0:00:00]} 7. Qe1 {[%emt 0:00:00]} Nd7 {[%emt 0:03:49]} 8. b3 {[%emt 0:00:55]} c5 {[%emt 0:04:57]} 9. Bb2 {[%emt 0:00:45]} Bd6 {[%emt 0:02:35]} 10. a4 {[%emt 0:00:29]} Qe7 {[%emt 0:03:53]} 11. Na3 {[%emt 0:02:49]} b6 {[%emt 0:06:34]} 12. Nc4 {[%emt 0:05:42]} Bb7 {[%emt 0:00:13]} 13. d3 {[%emt 0:00:20]} O-O-O {[%emt 0:07:01]} 14. Bc3 {[%emt 0:15:26]} g6 {[%emt 0:06:33]} 15. Nfd2 {[%emt 0:03:53]} Rhe8 {[%emt 0:10:28]} 16. b4 {[%emt 0:05:53]} cxb4 {[%emt 0:06:04]} 17. Nxd6+ {[%emt 0:00:49]} Qxd6 {[%emt 0:00:04]} 18. Nc4 {[%emt 0:00:14]} Qe6 {[%emt 0:03:13]} 19. Bxb4 {[%emt 0:00:10]} f5 {[%emt 0:02:46]} 20. f3 {[%emt 0:02:01]} f4 {[%emt 0:07:54]} 21. Qh4 {[%emt 0:12:30]} h5 {[%emt 0:03:18]} 22. Qg5 {[%emt 0:01:31]} a5 {[%emt 0:01:29]} 23. Ba3 {[%emt 0:06:11]} Ba6 {[%emt 0:00:53]} 24. Nb2 {[%emt 0:01:34]} Nf8 {[%emt 0:04:36]} 25. Bxf8 {[%emt 0:04:37]} Rxf8 {[%emt 0:00:00]} 26. Nd1 {[%emt 0:04:31]} Qf6 {[%emt 0:01:16]} 27. Qxf6 {[%emt 0:00:31]} Rxf6 {[%emt 0:00:00]} 28. Nf2 {[%emt 0:00:46]} Rc6 {[%emt 0:01:11]} 29. c4 {[%emt 0:00:29]} Rcd6 {[%emt 0:00:35]} 30. Rfc1 {[%emt 0:00:15]} Rc6 {[%emt 0:04:24]} 31. Kf1 {[%emt 0:01:12]} Kd7 {[%emt 0:05:36]} 1/2-1/2

[Event "120th Taflfelag Reykjavik-B 2020"]
[Site "Reykjavik"]
[Date "2020.09.26"]
[Round "6.10"]
[White "Johannsson, Birkir Isak"]
[Black "Briem, Benedikt"]
[Result "1-0"]
[ECO "A37"]
[WhiteElo "2146"]
[BlackElo "1951"]
[Annotator "ChessBase"]
[PlyCount "75"]
[EventDate "2020.09.13"]
[EventType "tourn"]
[EventCountry "ISL"]
[SourceTitle "playchess.com"]
[Source "ChessBase"]
[SourceQuality "1"]
[TimeControl "40/5400+15:1800+30"]

1. c4 {[%emt 0:00:00]} c5 {[%emt 0:02:52]} 2. Nf3 {[%emt 0:00:00]} Nc6 {[%emt 0:00:00]} 3. Nc3 {[%emt 0:00:00]} e5 {[%emt 0:00:00]} 4. g3 {[%emt 0:00:00]} g6 {[%emt 0:00:00]} 5. Bg2 {[%emt 0:00:00]} Bg7 {[%emt 0:00:00]} 6. a3 {[%emt 0:00:00]} Nge7 {[%emt 0:00:09]} 7. O-O {[%emt 0:00:00]} O-O {[%emt 0:00:24]} 8. Rb1 {[%emt 0:00:00]} a6 {[%emt 0:03:01]} 9. b4 {[%emt 0:02:21]} d6 {[%emt 0:01:44]} 10. d3 {[%emt 0:01:26]} Rb8 {[%emt 0:00:33]} 11. b5 {[%emt 0:15:42]} axb5 {[%emt 0:02:48]} 12. Rxb5 {[%emt 0:00:21]} f5 {[%emt 0:03:55]} 13. Bd2 {[%emt 0:03:23]} h6 {[%emt 0:02:12]} 14. Qb1 {[%emt 0:07:18]} Qc7 {[%emt 0:08:12]} 15. Ne1 {[%emt 0:04:40]} Be6 {[%emt 0:04:17]} 16. Qc1 {[%emt 0:09:37]} Kh7 {[%emt 0:00:58]} 17. Rb1 {[%emt 0:00:09]} Qd7 {[%emt 0:05:22]} 18. Nc2 {[%emt 0:03:29]} Rfc8 {[%emt 0:04:22]} 19. Ne3 {[%emt 0:01:40]} g5 {[%emt 0:04:27]} 20. Ned5 {[%emt 0:03:42]} Bxd5 {[%emt 0:01:34]} 21. cxd5 {[%emt 0:03:18]} Nd8 {[%emt 0:00:19]} 22. Nb5 {[%emt 0:00:38]} Nf7 {[%emt 0:01:39]} 23. Qc4 {[%emt 0:01:37]} b6 {[%emt 0:04:05]} 24. Rb3 {[%emt 0:00:25]} Rb7 {[%emt 0:00:13]} 25. Rfb1 {[%emt 0:00:22]} Rcb8 {[%emt 0:00:07]} 26. a4 {[%emt 0:07:30]} Ra8 {[%emt 0:02:13]} 27. h4 {[%emt 0:02:25]} Kg6 {[%emt 0:03:54]} 28. Nc3 {[%emt 0:00:30]} Nc8 {[%emt 0:00:35]} 29. hxg5 {[%emt 0:00:00]} hxg5 {[%emt 0:00:26]} 30. g4 {[%emt 0:00:25]} f4 {[%emt 0:02:02]} 31. Be4+ {[%emt 0:00:30]} Kf6 {[%emt 0:00:47]} 32. Bf5 {[%emt 0:00:00]} Qc7 {[%emt 0:02:19]} 33. a5 {[%emt 0:02:02]} Nh6 {[%emt 0:09:09]} 34. Be6 {[%emt 0:00:44]} Qb8 {[%emt 0:03:43]} 35. f3 {[%emt 0:00:35]} Kg6 {[%emt 0:02:23]} 36. Qe4+ {[%emt 0:02:12]} Kf6 {[%emt 0:01:02]} 37. Qh7 {[%emt 0:00:00]} Nf5 {[%emt 0:05:03]} 38. Qxf5+ {[%emt 0:00:25]} 1-0

[Event "120th Taflfelag Reykjavik-B 2020"]
[Site "Reykjavik"]
[Date "2020.09.27"]
[Round "7.6"]
[White "Briem, Benedikt"]
[Black "Gudmundsson, Gunnar Erik"]
[Result "1-0"]
[ECO "D05"]
[WhiteElo "1951"]
[BlackElo "1801"]
[Annotator "ChessBase"]
[PlyCount "105"]
[EventDate "2020.09.13"]
[EventType "tourn"]
[EventCountry "ISL"]
[SourceTitle "playchess.com"]
[Source "ChessBase"]
[SourceQuality "1"]
[TimeControl "40/5400+15:1800+30"]

1. Nf3 {[%emt 0:00:00]} Nf6 {[%emt 0:00:00]} 2. d4 {[%emt 0:00:00]} e6 {[%emt 0:00:00]} 3. e3 {[%emt 0:00:00]} b6 {[%emt 0:00:00]} 4. Bd3 {[%emt 0:00:00]} Bb7 {[%emt 0:00:00]} 5. Nbd2 {[%emt 0:00:00]} d5 {[%emt 0:00:00]} 6. b3 {[%emt 0:00:00]} Bd6 {[%emt 0:00:35]} 7. O-O {[%emt 0:00:18]} O-O {[%emt 0:00:03]} 8. Bb2 {[%emt 0:00:09]} Ne4 {[%emt 0:03:42]} 9. Qe2 {[%emt 0:07:23]} f5 {[%emt 0:06:23]} 10. Rfc1 {[%emt 0:03:00]} Nd7 {[%emt 0:00:50]} 11. Nf1 {[%emt 0:01:41]} Qf6 {[%emt 0:06:06]} 12. c4 {[%emt 0:01:47]} c6 {[%emt 0:01:08]} 13. c5 {[%emt 0:12:05]} Bc7 {[%emt 0:01:48]} 14. b4 {[%emt 0:04:25]} g5 {[%emt 0:09:46]} 15. b5 {[%emt 0:04:46]} bxc5 {[%emt 0:02:13]} 16. dxc5 {[%emt 0:06:34]} e5 {[%emt 0:01:10]} 17. bxc6 {[%emt 0:04:50]} Bxc6 {[%emt 0:00:07]} 18. Bxe4 {[%emt 0:14:42]} fxe4 {[%emt 0:01:03]} 19. N3d2 {[%emt 0:04:57]} Rab8 {[%emt 0:05:18]} 20. Nb1 {[%emt 0:09:27]} Bb5 {[%emt 0:11:05]} 21. Qd2 {[%emt 0:01:59]} Bd3 {[%emt 0:01:02]} 22. Nc3 {[%emt 0:02:56]} Qf7 {[%emt 0:04:15]} 23. Ba3 {[%emt 0:06:20]} Rfe8 {[%emt 0:03:18]} 24. Na4 {[%emt 0:03:55]} Bb5 {[%emt 0:10:43]} 25. Nc3 {[%emt 0:02:14]} Bd3 {[%emt 0:05:09]} 26. Na4 {[%emt 0:00:16]} Rbd8 {[%emt 0:16:09]} 27. Ng3 {[%emt 0:01:00]} d4 {[%emt 0:01:41]} 28. exd4 {[%emt 0:00:27]} exd4 {[%emt 0:00:27]} 29. Qxg5+ {[%emt 0:01:01]} Qg6 {[%emt 0:00:37]} 30. Qd5+ {[%emt 0:00:29]} Qe6 {[%emt 0:00:58]} 31. Qxe6+ {[%emt 0:00:12]} Rxe6 {[%emt 0:00:00]} 32. Nb2 {[%emt 0:00:00]} Bb5 {[%emt 0:00:14]} 33. Re1 {[%emt 0:00:34]} Nf6 {[%emt 0:00:36]} 34. Nf5 {[%emt 0:00:24]} Ba5 {[%emt 0:00:43]} 35. Red1 {[%emt 0:00:11]} Bc3 {[%emt 0:00:32]} 36. Rac1 {[%emt 0:00:05]} Be2 {[%emt 0:00:15]} 37. Rxc3 {[%emt 0:00:00]} Bxd1 {[%emt 0:00:00]} 38. Rg3+ {[%emt 0:00:00]} Kf8 {[%emt 0:00:00]} 39. Nxd1 {[%emt 0:00:00]} Ra6 {[%emt 0:00:54]} 40. c6+ {[%emt 0:00:00]} Kf7 {[%emt 0:00:00]} 41. c7 {[%emt 0:17:04]} Rc8 {[%emt 0:19:06]} 42. Nd6+ {[%emt 0:01:23]} Rxd6 {[%emt 0:00:12]} 43. Bxd6 {[%emt 0:00:06]} Ne8 {[%emt 0:01:03]} 44. Be5 {[%emt 0:02:07]} d3 {[%emt 0:02:43]} 45. f4 {[%emt 0:06:27]} Ke6 {[%emt 0:02:58]} 46. Rg8 {[%emt 0:00:43]} Kd7 {[%emt 0:00:56]} 47. Kf2 {[%emt 0:00:29]} a5 {[%emt 0:01:21]} 48. Nc3 {[%emt 0:00:49]} a4 {[%emt 0:01:10]} 49. Nxe4 {[%emt 0:00:40]} a3 {[%emt 0:00:44]} 50. Rxe8 {[%emt 0:00:06]} Kxe8 {[%emt 0:00:55]} 51. Nd6+ {[%emt 0:00:03]} Kd7 {[%emt 0:00:07]} 52. Nxc8 {[%emt 0:00:08]} Kxc8 {[%emt 0:00:05]} 53. Ke3 {[%emt 0:00:05]} 1-0

[Event "120th Taflfelag Reykjavik-B 2020"]
[Site "Reykjavik"]
[Date "2020.09.27"]
[Round "7.7"]
[White "Mai, Alexander Oliver"]
[Black "Johannsson, Birkir Isak"]
[Result "1-0"]
[ECO "C84"]
[WhiteElo "2055"]
[BlackElo "2146"]
[Annotator "ChessBase"]
[PlyCount "133"]
[EventDate "2020.09.13"]
[EventType "tourn"]
[EventCountry "ISL"]
[SourceTitle "playchess.com"]
[Source "ChessBase"]
[SourceQuality "1"]
[TimeControl "40/5400+15:1800+30"]

1. e4 {[%emt 0:00:00]} e5 {[%emt 0:01:06]} 2. Nf3 {[%emt 0:00:00]} Nc6 {[%emt 0:00:00]} 3. Bb5 {[%emt 0:00:00]} a6 {[%emt 0:00:00]} 4. Ba4 {[%emt 0:00:00]} Nf6 {[%emt 0:00:00]} 5. d4 {[%emt 0:00:00]} exd4 {[%emt 0:03:53]} 6. O-O {[%emt 0:00:00]} Be7 {[%emt 0:01:34]} 7. e5 {[%emt 0:00:00]} Ne4 {[%emt 0:08:00]} 8. Nxd4 {[%emt 0:00:20]} Nc5 {[%emt 0:02:30]} 9. Nf5 {[%emt 0:06:24]} Ne6 {[%emt 0:05:52]} 10. Qg4 {[%emt 0:11:36]} Bf8 {[%emt 0:06:24]} 11. Bxc6 {[%emt 0:11:49]} dxc6 {[%emt 0:01:55]} 12. Rd1 {[%emt 0:02:14]} Bd7 {[%emt 0:00:14]} 13. Qf3 {[%emt 0:06:36]} Be7 {[%emt 0:22:28]} 14. Nxe7 {[%emt 0:07:10]} Qxe7 {[%emt 0:01:15]} 15. Nc3 {[%emt 0:00:40]} O-O-O {[%emt 0:02:57]} 16. Be3 {[%emt 0:04:24]} Kb8 {[%emt 0:00:57]} 17. Rd2 {[%emt 0:04:35]} Bc8 {[%emt 0:00:30]} 18. Rad1 {[%emt 0:00:38]} Rxd2 {[%emt 0:00:47]} 19. Rxd2 {[%emt 0:00:00]} Rd8 {[%emt 0:03:01]} 20. Qd1 {[%emt 0:03:01]} Rxd2 {[%emt 0:01:02]} 21. Qxd2 {[%emt 0:00:00]} Qb4 {[%emt 0:02:33]} 22. b3 {[%emt 0:01:54]} b6 {[%emt 0:02:11]} 23. f3 {[%emt 0:04:02]} Kb7 {[%emt 0:01:12]} 24. Ne4 {[%emt 0:06:03]} Qxd2 {[%emt 0:00:46]} 25. Bxd2 {[%emt 0:01:44]} c5 {[%emt 0:01:04]} 26. Kf2 {[%emt 0:01:01]} Kc6 {[%emt 0:01:00]} 27. c4 {[%emt 0:01:10]} a5 {[%emt 0:02:30]} 28. Ke3 {[%emt 0:01:09]} Ba6 {[%emt 0:01:56]} 29. Kd3 {[%emt 0:01:42]} Bc8 {[%emt 0:00:00]} 30. g4 {[%emt 0:05:04]} Kd7 {[%emt 0:04:52]} 31. Be3 {[%emt 0:03:27]} Ke7 {[%emt 0:01:06]} 32. f4 {[%emt 0:02:52]} Nf8 {[%emt 0:00:27]} 33. f5 {[%emt 0:01:32]} g6 {[%emt 0:06:34]} 34. Bg5+ {[%emt 0:01:16]} Kd7 {[%emt 0:00:05]} 35. Nf6+ {[%emt 0:01:27]} Kc6 {[%emt 0:00:07]} 36. Ke4 {[%emt 0:00:46]} b5 {[%emt 0:01:20]} 37. Bh6 {[%emt 0:00:56]} gxf5+ {[%emt 0:01:15]} 38. gxf5 {[%emt 0:00:00]} Nd7 {[%emt 0:00:00]} 39. cxb5+ {[%emt 0:02:59]} Kxb5 {[%emt 0:00:00]} 40. Nxh7 {[%emt 0:00:00]} c4 {[%emt 0:00:00]} 41. bxc4+ {[%emt 0:18:48]} Kxc4 {[%emt 0:15:10]} 42. Ng5 {[%emt 0:08:57]} Nc5+ {[%emt 0:01:16]} 43. Ke3 {[%emt 0:01:20]} Bxf5 {[%emt 0:00:42]} 44. Nxf7 {[%emt 0:00:14]} Kd5 {[%emt 0:09:08]} 45. Bf4 {[%emt 0:00:59]} Ne6 {[%emt 0:04:27]} 46. h4 {[%emt 0:00:57]} Bg6 {[%emt 0:02:34]} 47. Nh6 {[%emt 0:01:17]} Nd4 {[%emt 0:01:15]} 48. Bg3 {[%emt 0:01:11]} c5 {[%emt 0:00:54]} 49. Ng4 {[%emt 0:01:32]} Nf5+ {[%emt 0:04:16]} 50. Kf4 {[%emt 0:00:03]} Ke6 {[%emt 0:00:43]} 51. Be1 {[%emt 0:00:26]} a4 {[%emt 0:00:11]} 52. Nf6 {[%emt 0:00:46]} Ne7 {[%emt 0:01:16]} 53. h5 {[%emt 0:00:29]} Bb1 {[%emt 0:00:03]} 54. a3 {[%emt 0:00:07]} c4 {[%emt 0:00:00]} 55. Bc3 {[%emt 0:00:48]} Nf5 {[%emt 0:01:03]} 56. Ne4 {[%emt 0:01:01]} Bxe4 {[%emt 0:00:41]} 57. Kxe4 {[%emt 0:00:02]} Ng3+ {[%emt 0:00:06]} 58. Kd4 {[%emt 0:00:24]} Nxh5 {[%emt 0:00:04]} 59. Kxc4 {[%emt 0:00:09]} Nf4 {[%emt 0:00:44]} 60. Kb5 {[%emt 0:01:06]} Kd5 {[%emt 0:01:25]} 61. Kxa4 {[%emt 0:00:09]} Kc4 {[%emt 0:00:09]} 62. Bb4 {[%emt 0:00:49]} Ne6 {[%emt 0:00:46]} 63. Bd6 {[%emt 0:00:36]} Nd4 {[%emt 0:01:14]} 64. Ka5 {[%emt 0:00:32]} Kb3 {[%emt 0:00:00]} 65. a4 {[%emt 0:00:37]} Kc4 {[%emt 0:00:16]} 66. Kb6 {[%emt 0:00:18]} Kd5 {[%emt 0:00:41]} 67. a5 {[%emt 0:00:18]} 1-0

[Event "120th Taflfelag Reykjavik-B 2020"]
[Site "Reykjavik"]
[Date "2020.09.27"]
[Round "7.8"]
[White "Hardarson, Petur Palmi"]
[Black "Olafsson, Thorvardur"]
[Result "0-1"]
[ECO "D85"]
[WhiteElo "2061"]
[BlackElo "2111"]
[Annotator "ChessBase"]
[PlyCount "62"]
[EventDate "2020.09.13"]
[EventType "tourn"]
[EventCountry "ISL"]
[SourceTitle "playchess.com"]
[Source "ChessBase"]
[SourceQuality "1"]
[TimeControl "40/5400+15:1800+30"]

1. d4 {[%emt 0:00:00]} Nf6 {[%emt 0:00:00]} 2. c4 {[%emt 0:00:24]} g6 {[%emt 0:00:00]} 3. Nc3 {[%emt 0:00:12]} d5 {[%emt 0:00:00]} 4. cxd5 {[%emt 0:00:07]} Nxd5 {[%emt 0:00:00]} 5. e4 {[%emt 0:00:00]} Nxc3 {[%emt 0:00:00]} 6. bxc3 {[%emt 0:00:00]} Bg7 {[%emt 0:00:00]} 7. Nf3 {[%emt 0:00:10]} c5 {[%emt 0:00:00]} 8. Bb5+ {[%emt 0:00:35]} Nc6 {[%emt 0:03:33]} 9. d5 {[%emt 0:00:40]} Qa5 {[%emt 0:02:34]} 10. Rb1 {[%emt 0:00:40]} a6 {[%emt 0:06:55]} 11. Bxc6+ {[%emt 0:02:07]} bxc6 {[%emt 0:00:00]} 12. O-O {[%emt 0:01:04]} O-O {[%emt 0:02:01]} 13. Bg5 {[%emt 0:14:25]} Re8 {[%emt 0:07:16]} 14. Qb3 {[%emt 0:28:12]} cxd5 {[%emt 0:08:08]} 15. exd5 {[%emt 0:00:27]} Bxc3 {[%emt 0:22:37]} 16. Rfc1 {[%emt 0:06:55]} Bf5 {[%emt 0:05:20]} 17. Rxc3 {[%emt 0:17:12]} Bxb1 {[%emt 0:00:15]} 18. a3 {[%emt 0:00:55]} Rab8 {[%emt 0:03:31]} 19. Qc4 {[%emt 0:00:11]} Ba2 {[%emt 0:01:23]} 20. Qd3 {[%emt 0:01:52]} Rb1+ {[%emt 0:05:04]} 21. Bc1 {[%emt 0:00:58]} Qxa3 {[%emt 0:12:41]} 22. Rxa3 {[%emt 0:07:39]} Rxc1+ {[%emt 0:00:00]} 23. Qf1 {[%emt 0:00:00]} Rxf1+ {[%emt 0:00:00]} 24. Kxf1 {[%emt 0:00:00]} Bxd5 {[%emt 0:00:00]} 25. Ke1 {[%emt 0:00:32]} Bxf3 {[%emt 0:00:18]} 26. gxf3 {[%emt 0:00:00]} Ra8 {[%emt 0:05:09]} 27. Ra5 {[%emt 0:00:14]} c4 {[%emt 0:00:00]} 28. Ke2 {[%emt 0:01:52]} Kg7 {[%emt 0:01:15]} 29. Ke3 {[%emt 0:00:35]} Rc8 {[%emt 0:00:46]} 30. Kd2 {[%emt 0:00:23]} c3+ {[%emt 0:00:03]} 31. Kc2 {[%emt 0:09:24]} Rc6 {[%emt 0:08:56]} 0-1

[Event "120th Taflfelag Reykjavik-B 2020"]
[Site "Reykjavik"]
[Date "2020.09.27"]
[Round "7.9"]
[White "Ragnarsson, Johann"]
[Black "Jonsson, Gauti Pall"]
[Result "1-0"]
[ECO "A45"]
[WhiteElo "1952"]
[BlackElo "2046"]
[Annotator "ChessBase"]
[PlyCount "87"]
[EventDate "2020.09.13"]
[EventType "tourn"]
[EventCountry "ISL"]
[SourceTitle "playchess.com"]
[Source "ChessBase"]
[SourceQuality "1"]
[TimeControl "40/5400+15:1800+30"]

1. c3 {[%emt 0:00:00]} Nf6 {[%emt 0:03:13]} 2. d4 {[%emt 0:00:00]} g6 {[%emt 0:00:55]} 3. Bg5 {[%emt 0:00:00]} Bg7 {[%emt 0:09:09]} 4. Bxf6 {[%emt 0:00:12]} exf6 {[%emt 0:01:26]} 5. e4 {[%emt 0:03:15]} O-O {[%emt 0:06:12]} 6. Nd2 {[%emt 0:01:08]} d5 {[%emt 0:05:14]} 7. exd5 {[%emt 0:11:41]} Re8+ {[%emt 0:01:50]} 8. Ne2 {[%emt 0:00:21]} Qxd5 {[%emt 0:07:33]} 9. Qb3 {[%emt 0:09:59]} Qf5 {[%emt 0:03:27]} 10. f3 {[%emt 0:07:09]} Nc6 {[%emt 0:05:37]} 11. Ne4 {[%emt 0:12:38]} Rxe4 {[%emt 0:05:38]} 12. fxe4 {[%emt 0:07:29]} Qxe4 {[%emt 0:00:00]} 13. h3 {[%emt 0:03:18]} Be6 {[%emt 0:05:03]} 14. Qb4 {[%emt 0:36:20]} b6 15. Qxb6 {[%emt 0:00:00]} Rb8 {[%emt 0:02:51]} 16. Qxc7 {[%emt 0:00:00]} Rxb2 {[%emt 0:02:57]} 17. Qg3 {[%emt 0:00:00]} Bd5 {[%emt 0:08:12]} 18. h4 {[%emt 0:00:00]} Bh6 {[%emt 0:02:33]} 19. Rh3 {[%emt 0:00:00]} Qf5 {[%emt 0:03:03]} 20. Rd1 {[%emt 0:00:00]} Na5 {[%emt 0:01:09]} 21. h5 {[%emt 0:00:00]} Bg5 {[%emt 0:11:12]} 22. hxg6 {[%emt 0:00:00]} Nc4 {[%emt 0:01:09]} 23. gxh7+ {[%emt 0:00:00]} Kh8 {[%emt 0:00:14]} 24. Qd3 {[%emt 0:00:00]} Qe6 {[%emt 0:03:29]} 25. Rb1 {[%emt 0:00:00]} Be4 {[%emt 0:01:08]} 26. Rxb2 {[%emt 0:00:00]} Nxb2 {[%emt 0:00:00]} 27. Qb5 {[%emt 0:00:00]} Nd3+ {[%emt 0:01:56]} 28. Rxd3 {[%emt 0:00:00]} Bxd3 {[%emt 0:00:00]} 29. Qxd3 {[%emt 0:00:00]} Qxa2 {[%emt 0:00:00]} 30. d5 {[%emt 0:00:00]} Qa4 {[%emt 0:00:10]} 31. d6 {[%emt 0:00:00]} Qd7 {[%emt 0:00:00]} 32. c4 {[%emt 0:00:00]} f5 {[%emt 0:00:02]} 33. Ng3 {[%emt 0:00:00]} Qe6+ {[%emt 0:01:13]} 34. Be2 {[%emt 0:00:00]} f4 {[%emt 0:00:15]} 35. Ne4 {[%emt 0:00:00]} Bh4+ {[%emt 0:00:00]} 36. Kd1 {[%emt 0:00:00]} a5 {[%emt 0:00:13]} 37. d7 {[%emt 0:01:00]} Bd8 {[%emt 0:00:05]} 38. Nc3 {[%emt 0:01:19]} Qb6 {[%emt 0:00:16]} 39. Nb5 {[%emt 0:00:29]} Qg1+ {[%emt 0:00:07]} 40. Bf1 {[%emt 0:00:00]} a4 {[%emt 0:00:46]} 41. Qd4+ {[%emt 0:15:57]} Qxd4+ {[%emt 0:15:07]} 42. Nxd4 {[%emt 0:00:07]} a3 {[%emt 0:00:33]} 43. Kc2 {[%emt 0:01:09]} a2 {[%emt 0:00:24]} 44. Kb2 {[%emt 0:00:08]} 1-0